bitfinex/quotes_ETHUSD_20230903
["timestamp","ask_amount","ask_price","bid_price","bid_amount"]
[1693747153285,2.87711167,1634.0,1633.8,2.5106]
[1693747160302,0.92811167,1634.0,1633.8,2.5106]
[1693747162420,3.04291167,1634.0,1633.8,2.5106]
[1693747164727,4.04291167,1634.0,1633.8,2.5106]
[1693747171728,4.68135936,1634.0,1633.8,2.5106]
[1693747176649,1.92811167,1634.0,1633.9,5.44801713]
[1693747176943,1.92811167,1634.0,1633.9,6.08943521]
[1693747180413,1.92811167,1634.0,1633.9,5.44801713]
[1693747183350,1.92811167,1634.0,1633.9,5.44698012]
[1693747183665,1.92811167,1634.0,1633.9,6.66927151]
[1693747188463,1.92811167,1634.0,1633.9,6.85156651]
[1693747198588,1.92811167,1634.0,1633.9,6.04644043]
[1693747198789,1.92811167,1634.0,1633.9,6.85080483]
[1693747199083,1.92811167,1634.0,1633.9,6.04644043]
[1693747199286,1.92811167,1634.0,1633.9,4.82414904]
[1693747199915,0.92811167,1634.0,1633.9,4.82414904]
[1693747200398,0.92811167,1634.0,1633.9,5.62853249]
[1693747200770,0.92811167,1634.0,1633.9,4.82414904]
[1693747201099,0.92811167,1634.0,1633.9,5.62852999]
[1693747201306,0.92811167,1634.0,1633.9,6.85590443]
[1693747215884,0.92811167,1634.0,1633.9,7.49785096]
[1693747216908,0.92811167,1634.0,1633.9,10.81882422]
[1693747217312,0.92811167,1634.0,1633.9,12.10271728]
[1693747219552,0.92811167,1634.0,1633.9,12.58271728]
[1693747219733,0.92811167,1634.0,1633.9,11.61979749]
[1693747219912,0.00456248,1634.0,1633.9,11.61979749]
[1693747220117,0.101,1634.2,1634.0,4.56]
[1693747220318,0.101,1634.2,1634.1,6.54388965]
[1693747221174,0.10498315,1634.2,1634.1,6.54388965]
[1693747223965,0.10498315,1634.2,1634.1,9.54388965]
[1693747225033,0.10498315,1634.2,1634.1,10.98642585]
[1693747226136,0.10498315,1634.2,1634.1,10.02394385]
[1693747226572,0.10498315,1634.2,1634.1,10.98642585]
[1693747226887,0.10498315,1634.2,1634.1,10.02394385]
[1693747227049,0.10498315,1634.2,1634.1,10.98642585]
[1693747227237,0.10498315,1634.2,1634.1,10.02394385]
[1693747227679,1.9826,1634.5,1634.1,16.46294385]
[1693747227936,0.101,1634.6,1634.5,1.56]
[1693747228135,0.101,1634.6,1634.5,7.64185404]
[1693747228383,0.101,1634.6,1634.5,8.3811066]
[1693747228954,0.78723901,1634.6,1634.5,8.3811066]
[1693747229142,0.53723901,1634.6,1634.5,7.64185404]
[1693747229340,0.67538666,1634.6,1634.5,8.70603944]
[1693747229878,0.00386273,1634.6,1634.5,8.70603944]
[1693747230172,1.9427,1634.7,1634.5,8.70603944]
[1693747230378,1.9427,1634.7,1634.6,4.64185404]
[1693747230978,1.94657052,1634.7,1634.6,4.64185404]
[1693747231176,1.94657052,1634.7,1634.6,5.51245798]
[1693747236661,2.77162435,1634.7,1634.6,5.51245798]
[1693747238862,2.77162435,1634.7,1634.6,3.95245798]
[1693747239191,2.77162435,1634.7,1634.6,3.08185404]
[1693747239897,2.77162435,1634.7,1634.5,0.48163039]
[1693747240069,2.77162435,1634.7,1634.5,4.64185404]
[1693747240276,2.77162435,1634.7,1634.4,1.56]
[1693747240477,2.77162435,1634.7,1634.4,4.64185404]
[1693747241386,2.77162435,1634.7,1634.4,5.40603944]
[1693747243099,2.77162435,1634.7,1634.4,3.08185404]
[1693747247904,2.77162435,1634.7,1634.4,4.64185404]
[1693747255776,2.77162435,1634.7,1634.3,7.50577937]
[1693747255978,2.77162435,1634.7,1634.3,10.58763341]
[1693747256150,2.77162435,1634.7,1634.3,8.13974541]
[1693747256675,2.77162435,1634.7,1634.4,1.56]
[1693747260508,2.77162435,1634.7,1634.4,2.37397454]
[1693747260924,2.77162435,1634.7,1634.3,0.49789137]
[1693747261205,2.77162435,1634.7,1634.1,2.68367018]
[1693747261389,2.75562435,1634.7,1634.2,3.08185404]
[1693747263723,2.75562435,1634.7,1634.2,3.03185404]
[1693747265290,4.95552775,1634.7,1634.0,0.64118493]
[1693747265611,0.49555278,1634.6,1634.0,7.40537291]
[1693747265785,2.1042,1634.5,1634.1,0.68233394]
[1693747266126,0.8258785,1634.4,1634.2,0.0154]
[1693747267120,0.00573155,1634.3,1634.2,0.0154]
[1693747269021,0.8258785,1634.4,1634.2,0.0154]
[1693747270088,0.00573155,1634.3,1634.2,0.0154]
[1693747270906,0.00573155,1634.3,1634.2,0.497908]
[1693747279345,0.8315272,1634.3,1634.2,0.497908]
[1693747285952,0.82163758,1634.3,1634.2,0.482508]
[1693747305321,0.82163758,1634.3,1634.2,3.56436204]
[1693747305481,0.82163758,1634.3,1634.2,6.31986454]
[1693747306022,0.6399034,1634.6,1634.2,6.31986454]
[1693747306232,1.01749096,1634.6,1634.3,2.457]
[1693747306441,0.82526009,1634.5,1634.3,2.457]
[1693747307079,0.00529773,1634.4,1634.3,2.457]
[1693747307279,0.00529773,1634.4,1634.3,3.26637982]
[1693747308097,4.70685851,1634.7,1634.3,3.26637982]
[1693747308781,4.70685851,1634.7,1634.4,1.56]
[1693747308782,1.6399034,1634.7,1634.4,1.56]
[1693747309010,0.00531331,1634.6,1634.4,1.56]
[1693747309181,0.83076066,1634.6,1634.4,1.56]
[1693747311884,0.83076066,1634.6,1634.4,1.74982339]
[1693747316131,0.83076066,1634.6,1634.4,0.79082339]
[1693747324411,0.83076066,1634.6,1634.5,4.64185404]
[1693747329090,1.0,1634.7,1634.5,4.64185404]
[1693747329388,1.0,1634.7,1634.5,7.13415404]
[1693747329549,0.75777549,1634.6,1634.5,7.13415404]
[1693747329890,1.0,1634.7,1634.5,7.13415404]
[1693747330381,0.75777549,1634.6,1634.5,7.13415404]
[1693747331093,1.0,1634.7,1634.5,7.13415404]
[1693747331793,1.0,1634.7,1634.6,1.56]
[1693747331966,1.0,1634.7,1634.6,5.35526944]
[1693747333098,1.00496816,1634.7,1634.6,5.35526944]
[1693747336605,0.00496816,1634.7,1634.6,5.35526944]
[1693747337058,2.0281,1635.0,1634.6,5.35526944]
[1693747337354,2.0281,1635.0,1634.7,5.59495404]
[1693747337969,0.00497392,1634.9,1634.7,5.59495404]
[1693747338188,0.00497392,1634.9,1634.7,6.38179098]
[1693747339058,0.00497392,1634.9,1634.7,8.40989098]
[1693747339394,0.75788889,1634.8,1634.7,8.40989098]
[1693747340160,0.76285502,1634.8,1634.7,8.40989098]
[1693747340709,0.76285502,1634.8,1634.7,2.5131]
[1693747363353,0.76285502,1634.8,1634.7,5.59495404]
[1693747367134,0.76285502,1634.8,1634.7,7.78248144]
[1693747376292,0.76285502,1634.8,1634.7,5.26938144]
[1693747384331,0.76285502,1634.8,1634.6,2.0281]
[1693747384486,0.76285502,1634.8,1634.7,0.58630254]
[1693747396540,0.76285502,1634.8,1634.7,0.5284319]
[1693747396737,0.76285502,1634.8,1634.7,1.16961683]
[1693747396934,0.76285502,1634.8,1634.7,0.5284319]
[1693747397167,0.76285502,1634.8,1634.7,1.16961683]
[1693747397472,0.76285502,1634.8,1634.7,0.5284319]
[1693747399423,0.76285502,1634.8,1634.7,0.9239689]
[1693747400668,1.8781477,1634.8,1634.7,0.395537]
[1693747400830,3.26787544,1634.8,1634.7,0.395537]
[1693747401443,2.51466798,1634.8,1634.7,0.395537]
[1693747404179,1.87476458,1634.8,1634.7,0.395537]
[1693747404481,2.51466798,1634.8,1634.7,0.395537]
[1693747404837,1.3993753,1634.8,1634.7,0.395537]
[1693747415194,0.76285502,1634.8,1634.7,0.395537]
[1693747435613,2.70393943,1634.8,1634.7,0.395537]
[1693747435913,1.91935302,1634.8,1634.7,0.395537]
[1693747439770,2.74611376,1634.8,1634.7,0.395537]
[1693747442877,3.7046718,1634.8,1634.7,0.395537]
[1693747443182,4.55566672,1634.8,1634.7,0.395537]
[1693747445884,3.91662803,1634.8,1634.7,0.395537]
[1693747455799,4.55594743,1634.8,1634.7,0.395537]
[1693747464100,3.59738939,1634.8,1634.7,0.395537]
[1693747464306,4.55594743,1634.8,1634.7,0.395537]
[1693747472895,3.91662803,1634.8,1634.7,0.395537]
[1693747477856,6.89258672,1634.8,1634.7,0.395537]
[1693747479521,5.33258672,1634.8,1634.7,0.395537]
[1693747481855,5.19512809,1634.8,1634.7,0.395537]
[1693747488484,6.97717619,1634.8,1634.7,0.395537]
[1693747488645,8.57477293,1634.8,1634.7,0.395537]
[1693747489185,6.97717619,1634.8,1634.7,0.395537]
[1693747489543,8.57477293,1634.8,1634.7,0.395537]
[1693747490248,10.05903023,1634.8,1634.7,0.395537]
[1693747490452,10.53903023,1634.8,1634.7,0.395537]
[1693747490689,12.13662697,1634.8,1634.7,0.395537]
[1693747491279,10.53903023,1634.8,1634.7,0.395537]
[1693747504847,3.91689317,1634.8,1634.7,0.395537]
[1693747505444,3.06589825,1634.8,1634.7,0.395537]
[1693747505847,3.705057,1634.8,1634.7,0.395537]
[1693747506142,1.91947308,1634.8,1634.7,0.395537]
[1693747506704,0.73180509,1634.8,1634.7,1.955537]
[1693747506939,0.95882318,1635.0,1634.7,1.955537]
[1693747507156,0.6734442,1634.8,1634.7,0.395537]
[1693747507440,0.54757626,1634.9,1634.7,1.955537]
[1693747507901,3.7791167,1635.1,1634.7,1.955537]
[1693747508104,3.7791167,1635.1,1634.8,2.4509]
[1693747508105,0.90694431,1635.0,1634.8,2.4509]
[1693747508316,33.44575901,1635.3,1634.9,4.64185404]
[1693747508505,30.57,1635.3,1635.0,2.0241854]
[1693747509218,0.00454732,1635.2,1635.0,2.0241854]
[1693747509426,0.00454732,1635.2,1635.0,0.4641854]
[1693747510202,1.27816227,1635.4,1635.0,0.4641854]
[1693747510398,2.88121061,1635.5,1635.0,0.4641854]
[1693747510641,6.69851544,1635.5,1635.0,0.4641854]
[1693747510852,6.69851544,1635.5,1635.1,2.4605]
[1693747511004,0.00456303,1635.4,1635.1,2.4605]
[1693747514359,0.4511373,1635.3,1635.1,2.4605]
[1693747514719,0.00456303,1635.4,1635.1,2.4605]
[1693747517052,0.64174344,1635.4,1635.1,2.4605]
[1693747517626,0.00456303,1635.4,1635.2,1.56]
[1693747519230,0.41345381,1635.3,1635.2,1.56]
[1693747519424,0.41345381,1635.3,1635.2,1.96205]
[1693747519756,0.00456303,1635.4,1635.2,1.96205]
[1693747520055,0.0054516,1635.5,1635.2,1.96205]
[1693747520056,0.0045662,1635.3,1635.2,1.96205]
[1693747521107,0.0054516,1635.5,1635.2,1.96205]
[1693747522248,0.00457398,1635.4,1635.2,1.96205]
[1693747523837,0.00457398,1635.4,1635.3,1.56]
[1693747525387,0.00457398,1635.4,1635.2,1.96205]
[1693747531770,0.00457398,1635.4,1635.3,2.4849]
[1693747532390,0.00457398,1635.4,1635.3,2.929595]
[1693747534357,0.5495285,1635.4,1635.3,2.929595]
[1693747554441,0.5495285,1635.4,1635.3,2.4849]
[1693747569294,1.0548801,1635.4,1635.3,2.4849]
[1693747570262,1.69258444,1635.4,1635.3,2.4849]
[1693747575742,1.0548801,1635.4,1635.3,2.4849]
[1693747576041,0.5495285,1635.4,1635.3,2.4849]
[1693747576735,1.05484169,1635.4,1635.3,2.4849]
[1693747576940,0.5495285,1635.4,1635.3,2.4849]
[1693747577114,1.05476101,1635.4,1635.3,2.4849]
[1693747577643,0.5495285,1635.4,1635.3,2.4849]
[1693747590454,1.05663101,1635.4,1635.3,2.4849]
[1693747590663,1.69433535,1635.4,1635.3,2.4849]
[1693747593168,0.5495285,1635.4,1635.3,2.4849]
[1693747618531,0.5495285,1635.4,1635.3,3.03578612]
[1693747618708,0.5495285,1635.4,1635.3,3.40344238]
[1693747618911,0.5495285,1635.4,1635.3,2.85255626]
[1693747620197,0.5495285,1635.4,1635.3,3.40342519]
[1693747622833,0.5495285,1635.4,1635.3,4.96342519]
[1693747623010,0.5495285,1635.4,1635.3,3.40342519]
[1693747623511,0.5495285,1635.4,1635.3,3.40338595]
[1693747624363,0.5495285,1635.4,1635.3,2.85255626]
[1693747625655,0.5495285,1635.4,1635.3,3.4033497]
[1693747626457,0.5495285,1635.4,1635.3,2.85255626]
[1693747627057,0.5495285,1635.4,1635.3,3.40333099]
[1693747627224,0.5495285,1635.4,1635.3,2.85255626]
[1693747629358,0.5495285,1635.4,1635.3,2.4849]
[1693747629660,0.5495285,1635.4,1635.1,3.10557648]
[1693747629863,0.5495285,1635.4,1635.2,3.63261842]
[1693747630026,2.5174285,1635.4,1635.2,3.08185404]
[1693747630843,2.3674285,1635.4,1635.2,3.08185404]
[1693747631053,0.00240137,1635.3,1635.2,3.08185404]
[1693747631265,0.00240137,1635.3,1635.2,3.63262202]
[1693747632101,1.9679,1635.4,1635.2,3.63262202]
[1693747632299,1.9679,1635.4,1635.2,3.08185404]
[1693747633072,0.00240442,1635.3,1635.2,3.08185404]
[1693747633236,0.00240442,1635.3,1635.2,4.40737413]
[1693747634074,1.9679,1635.4,1635.2,4.40737413]
[1693747634273,1.9679,1635.4,1635.2,3.85659709]
[1693747634770,1.7679,1635.4,1635.2,3.85659709]
[1693747635068,0.00240442,1635.3,1635.2,3.85659709]
[1693747635280,0.00240442,1635.3,1635.2,4.40738119]
[1693747636287,1.7679,1635.4,1635.2,4.40738119]
[1693747636498,1.7679,1635.4,1635.2,3.85659709]
[1693747636794,1.7679,1635.4,1635.0,4.0489522]
[1693747637104,1.9255555,1635.3,1635.0,2.447011]
[1693747637389,0.64010876,1635.3,1634.9,0.64077648]
[1693747637597,2.082,1635.2,1634.9,1.19151606]
[1693747638196,0.0023524,1635.1,1634.9,4.2733701]
[1693747638494,0.5250275,1635.1,1635.0,0.55073958]
[1693747639664,0.5250275,1635.1,1635.0,3.63259362]
[1693747645801,0.5250275,1635.1,1635.0,5.8333701]
[1693747648504,0.0023524,1635.1,1635.0,5.8333701]
[1693747649318,2.082,1635.2,1635.0,5.8333701]
[1693747649501,2.082,1635.2,1635.1,4.21593063]
[1693747650128,2.08437122,1635.2,1635.1,4.21593063]
[1693747650632,0.00237122,1635.2,1635.1,4.21593063]
[1693747651139,2.0723,1635.4,1635.1,4.21593063]
[1693747651435,2.0723,1635.4,1635.1,3.66519105]
[1693747651592,2.0723,1635.4,1635.2,0.3665191]
[1693747651796,2.0723,1635.4,1635.2,3.44837314]
[1693747651994,2.0723,1635.4,1635.2,5.80087314]
[1693747652210,0.00239003,1635.3,1635.2,5.80087314]
[1693747653139,2.0723,1635.4,1635.2,5.80087314]
[1693747654199,0.00239003,1635.3,1635.2,5.80087314]
[1693747654397,0.52535594,1635.3,1635.2,5.80087314]
[1693747655847,0.52535594,1635.3,1635.2,5.43435404]
[1693747656905,0.52535594,1635.3,1635.2,3.08185404]
[1693747658931,0.52535594,1635.3,1635.1,0.58333701]
[1693747659147,0.52535594,1635.3,1635.1,3.66519105]
[1693747664533,0.52535594,1635.3,1635.1,3.08185404]
[1693747665986,0.52289118,1635.3,1635.1,3.08185404]
[1693747666572,2.0723,1635.4,1635.1,3.08185404]
[1693747673757,0.52710934,1635.3,1635.1,3.08185404]
[1693747674098,2.0723,1635.4,1635.1,3.08185404]
[1693747675366,2.0723,1635.4,1635.1,3.84316709]
[1693747678501,2.0723,1635.4,1635.1,3.08185404]
[1693747684235,0.52710934,1635.3,1635.1,3.08185404]
[1693747684639,2.0723,1635.4,1635.1,3.08185404]
[1693747685801,1.6773,1635.4,1635.1,3.08185404]
[1693747687539,1.6773,1635.4,1635.2,0.35251298]
[1693747690538,2.31500434,1635.4,1635.1,3.08185404]
[1693747690744,2.79870559,1635.4,1635.1,3.08185404]
[1693747690942,2.16100125,1635.4,1635.1,3.08185404]
[1693747691248,2.7996658,1635.4,1635.1,3.08185404]
[1693747692150,2.7996658,1635.4,1635.0,2.97268461]
[1693747692304,2.7996658,1635.4,1635.0,3.08185404]
[1693747692305,4.25971654,1635.3,1635.0,3.08185404]
[1693747692506,0.42597165,1635.2,1635.0,3.08185404]
[1693747692706,2.62656455,1635.3,1635.0,3.08185404]
[1693747695752,1.9879,1635.3,1635.0,3.08185404]
[1693747699278,0.50022723,1635.2,1635.0,3.08185404]
[1693747709183,0.50022723,1635.2,1635.0,5.55065404]
[1693747735777,2.44362723,1635.2,1635.0,5.55065404]
[1693747738808,2.44362723,1635.2,1635.1,0.28385552]
[1693747739110,2.75185641,1635.2,1635.1,0.28385552]
[1693747739408,2.75185641,1635.2,1635.1,0.2838653]
[1693747740099,2.74454802,1635.2,1635.1,0.2838653]
[1693747740399,2.43631884,1635.2,1635.0,5.55065404]
[1693747740600,2.43631884,1635.2,1635.1,0.28387569]
[1693747742091,0.49291884,1635.2,1635.1,0.28387569]
[1693747784436,0.49291884,1635.2,1635.1,5.56791434]
[1693747784640,0.49291884,1635.2,1635.1,6.46791347]
[1693747784843,2.69581615,1635.5,1635.1,6.46791347]
[1693747785000,2.69581615,1635.5,1635.2,3.36572973]
[1693747785199,0.49986578,1635.4,1635.2,5.45405404]
[1693747786344,0.49986578,1635.4,1635.2,7.01405404]
[1693747786499,0.49986578,1635.4,1635.3,0.7014054]
[1693747800171,0.49986578,1635.4,1635.3,3.78325944]
[1693747800372,0.49986578,1635.4,1635.3,12.72290992]
[1693747800572,0.01975135,1635.4,1635.3,13.68501492]
[1693747800777,0.01975135,1635.4,1635.3,19.48261159]
[1693747801074,0.01975135,1635.4,1635.3,19.52831427]
[1693747802357,5.135e-05,1635.4,1635.3,19.52831427]
[1693747802562,0.0054516,1635.5,1635.3,20.16919499]
[1693747802807,0.0054516,1635.5,1635.4,15.32211768]
[1693747803671,0.0054516,1635.5,1635.4,17.5229984]
[1693747804012,0.0054516,1635.5,1635.4,16.88211768]
[1693747804824,0.101,1635.7,1635.6,9.439]
[1693747804966,0.101,1635.7,1635.6,17.86519818]
[1693747805309,0.101,1635.7,1635.6,19.87173424]
[1693747806970,0.101,1635.7,1635.6,19.87094813]
[1693747807169,0.101,1635.7,1635.6,19.87094362]
[1693747807611,0.101,1635.7,1635.6,20.48435867]
[1693747809883,0.101,1635.7,1635.6,20.18080515]
[1693747813722,0.101,1635.7,1635.6,19.70080515]
[1693747813890,0.101,1635.7,1635.6,12.6483901]
[1693747814614,0.101,1635.7,1635.6,13.14358298]
[1693747815317,0.101,1635.7,1635.6,13.62358298]
[1693747818404,0.101,1635.7,1635.6,13.81143615]
[1693747821442,0.101,1635.7,1635.6,3.57704692]
[1693747821642,0.101,1635.7,1635.6,3.08185404]
[1693747821943,0.6738863,1635.7,1635.6,3.08185404]
[1693747850726,0.6738863,1635.7,1635.6,4.64185404]
[1693747850941,0.6738863,1635.7,1635.6,5.12185404]
[1693747851114,0.6738863,1635.7,1635.6,5.68217438]
[1693747854169,0.6738863,1635.7,1635.6,5.20217438]
[1693747854461,0.6738863,1635.7,1635.6,3.64217438]
[1693747857665,0.6738863,1635.7,1635.6,3.08185404]
[1693747857869,0.6738863,1635.7,1635.5,0.48134941]
[1693747858080,0.6738863,1635.7,1635.6,3.08185404]
[1693747866886,0.6738863,1635.7,1635.6,3.34414756]
[1693747874170,0.6738863,1635.7,1635.6,3.98519172]
[1693747874369,0.6738863,1635.7,1635.6,3.34414756]
[1693747874569,0.6738863,1635.7,1635.6,4.23038336]
[1693747881206,0.6738863,1635.7,1635.6,6.91142752]
[1693747881611,0.6738863,1635.7,1635.6,7.23194961]
[1693747882102,0.6738863,1635.7,1635.6,17.60488674]
[1693747883225,0.6738863,1635.7,1635.6,18.56697796]
[1693747883724,0.101,1635.7,1635.6,18.56697796]
[1693747884423,0.101,1635.7,1635.6,17.28488963]
[1693747886916,0.01024432,1635.7,1635.6,17.28488963]
[1693747889764,0.01024432,1635.7,1635.6,18.56697796]
[1693747890255,0.01024432,1635.7,1635.6,18.56592094]
[1693747891054,0.01024432,1635.7,1635.6,17.60488674]
[1693747891214,0.01024432,1635.7,1635.6,18.56576541]
[1693747892253,0.01024432,1635.7,1635.6,17.28367708]
[1693747893060,0.01024432,1635.7,1635.6,17.7690014]
[1693747893930,0.01024432,1635.7,1635.6,18.68357066]
[1693747895161,0.01024432,1635.7,1635.6,19.32394722]
[1693747896474,0.01024432,1635.7,1635.6,18.36306855]
[1693747898082,0.01024432,1635.7,1635.6,19.32394722]
[1693747899344,0.01024432,1635.7,1635.6,18.36306855]
[1693747899545,0.01024432,1635.7,1635.6,19.32394722]
[1693747900085,0.01024432,1635.7,1635.6,18.36306855]
[1693747900372,0.01024432,1635.7,1635.6,19.32394722]
[1693747900547,0.01024432,1635.7,1635.6,18.36306855]
[1693747905575,0.101,1635.8,1635.7,9.439]
[1693747905906,0.101,1635.8,1635.7,15.39945442]
[1693747906101,0.101,1635.8,1635.7,18.39945442]
[1693747906967,0.101,1635.8,1635.7,20.38465442]
[1693747912714,1.9852,1635.9,1635.7,20.38465442]
[1693747913024,1.9852,1635.9,1635.8,6.56185404]
[1693747913202,1.9852,1635.9,1635.8,8.85474013]
[1693747913511,1.9852,1635.9,1635.8,10.41474013]
[1693747914796,2.43314109,1635.9,1635.8,10.41474013]
[1693747916205,2.43314109,1635.9,1635.8,10.67648072]
[1693747923236,0.54894109,1635.9,1635.8,11.31685728]
[1693747923379,0.54894109,1635.9,1635.8,17.75585728]
[1693747924717,0.54894109,1635.9,1635.8,18.71673595]
[1693747925419,0.54894109,1635.9,1635.8,19.97186277]
[1693747925623,0.44808469,1635.9,1635.8,19.97186277]
[1693747925993,0.101,1636.0,1635.9,3.0]
[1693747926189,0.101,1636.0,1635.9,10.62806371]
[1693747926393,0.101,1636.0,1635.9,13.62806371]
[1693747927204,0.101,1636.0,1635.9,12.98666692]
[1693747928320,0.101,1636.0,1635.9,19.42566692]
[1693747928678,0.101,1636.0,1635.9,20.98566692]
[1693747930216,0.101,1636.0,1635.9,21.62695264]
[1693747934222,0.101,1636.0,1635.9,20.66497876]
[1693747935570,0.101,1636.0,1635.9,21.62695264]
[1693747935769,0.101,1636.0,1635.9,22.24036769]
[1693747936341,0.101,1636.0,1635.9,21.27839381]
[1693747936862,0.101,1636.0,1635.9,22.24036769]
[1693747937239,0.101,1636.0,1635.9,21.27839381]
[1693747937425,0.101,1636.0,1635.9,22.24036769]
[1693747938658,0.101,1636.0,1635.9,22.42655939]
[1693747939559,0.101,1636.0,1635.9,23.34439892]
[1693747940752,0.101,1636.0,1635.9,22.7031132]
[1693747940952,0.101,1636.0,1635.9,23.3131132]
[1693747943570,2.1349,1636.3,1636.1,3.0]
[1693747943725,2.1349,1636.3,1636.2,8.38359463]
[1693747943929,0.101,1636.3,1636.2,9.58602332]
[1693747944828,0.101,1636.3,1636.2,12.24401562]
[1693747945029,0.101,1636.3,1636.2,11.60332332]
[1693747946581,0.101,1636.3,1636.2,18.04232332]
[1693747955609,0.101,1636.3,1636.2,18.5264175]
[1693747966919,0.101,1636.3,1636.2,19.42512458]
[1693747970375,0.101,1636.3,1636.2,12.98612458]
[1693747970618,0.101,1636.3,1636.2,11.78369589]
[1693747973333,0.101,1636.3,1636.2,12.39369589]
[1693747977441,0.101,1636.3,1636.2,11.91369589]
[1693747978231,0.101,1636.3,1636.2,12.39369589]
[1693747980350,0.101,1636.3,1636.2,13.03438819]
[1693747980717,0.101,1636.3,1636.2,14.73393085]
[1693747983256,0.101,1636.3,1636.2,15.6949693]
[1693747984642,0.101,1636.3,1636.2,15.054277]
[1693747986242,0.101,1636.3,1636.2,16.33636533]
[1693747987765,0.101,1636.3,1636.2,15.37532688]
[1693747991763,0.101,1636.3,1636.2,16.33770328]
[1693747992793,0.101,1636.3,1636.2,12.87607229]
[1693747992997,0.101,1636.3,1636.2,13.51767702]
[1693747993795,0.101,1636.3,1636.2,12.87607229]
[1693748005698,0.101,1636.3,1636.2,13.51766337]
[1693748010975,0.101,1636.3,1636.2,8.95766337]
[1693748011175,0.101,1636.3,1636.2,2.76313477]
[1693748011381,0.101,1636.3,1636.2,2.50139418]
[1693748011581,0.101,1636.3,1636.2,0.48409418]
[1693748011768,0.47089264,1636.3,1636.2,0.48409418]
[1693748012068,0.47089264,1636.3,1636.0,1.25159108]
[1693748012276,0.47089264,1636.3,1636.1,3.56005114]
[1693748012431,0.47089264,1636.3,1636.1,3.08185404]
[1693748044652,0.47089264,1636.3,1636.1,3.68890877]
[1693748045790,0.47089264,1636.3,1636.2,1.56]
[1693748045987,0.47089264,1636.3,1636.2,5.07720083]
[1693748046170,0.101,1636.3,1636.2,5.07720083]
[1693748050204,0.101,1636.3,1636.2,5.71879191]
[1693748050390,0.101,1636.3,1636.2,6.03661313]
[1693748051209,0.101,1636.3,1636.2,6.67820421]
[1693748054512,0.101,1636.3,1636.2,6.03661313]
[1693748055113,0.101,1636.3,1636.2,6.67820421]
[1693748055411,0.101,1636.3,1636.2,6.03661313]
[1693748056118,0.101,1636.3,1636.2,6.67820421]
[1693748056289,0.101,1636.3,1636.2,6.03661313]
[1693748062332,0.101,1636.3,1636.2,6.53034971]
[1693748072175,0.101,1636.3,1636.2,7.17194079]
[1693748088116,0.101,1636.3,1636.2,8.13401532]
[1693748089273,0.101,1636.3,1636.2,7.49272611]
[1693748098973,0.101,1636.3,1636.2,6.53331381]
[1693748099132,0.101,1636.3,1636.2,5.61513416]
[1693748099337,0.101,1636.3,1636.2,4.65275776]
[1693748104082,0.101,1636.3,1636.2,1.57090372]
[1693748104377,0.101,1636.3,1636.2,0.92908337]
[1693748106563,0.101,1636.3,1636.2,4.01093741]
[1693748106759,0.101,1636.3,1636.2,4.65275776]
[1693748106966,0.101,1636.3,1636.2,5.37027118]
[1693748109409,0.101,1636.3,1636.2,4.72845083]
[1693748109728,0.101,1636.3,1636.2,4.01093741]
[1693748110202,0.101,1636.3,1636.2,4.65275776]
[1693748113391,0.101,1636.3,1636.2,7.17513416]
[1693748113825,0.101,1636.3,1636.2,7.65513416]
[1693748114533,0.101,1636.3,1636.2,7.01331381]
[1693748114744,0.101,1636.3,1636.2,8.08048402]
[1693748116432,0.101,1636.5,1636.2,12.9759874]
[1693748116635,2.0743,1636.8,1636.4,5.5223764]
[1693748116811,2.0743,1636.8,1636.5,8.71846906]
[1693748117007,2.0743,1636.8,1636.6,0.43534679]
[1693748117226,2.0743,1636.8,1636.7,3.08185404]
[1693748131418,2.0743,1636.8,1636.7,3.57975438]
[1693748134133,2.0243,1636.8,1636.7,3.57975438]
[1693748136169,0.051,1636.8,1636.7,4.30115982]
[1693748136367,0.051,1636.8,1636.7,5.86115982]
[1693748138957,0.051,1636.8,1636.7,8.86115982]
[1693748139964,0.001,1636.8,1636.7,8.86115982]
[1693748144261,0.001,1636.8,1636.7,9.47115982]
[1693748145159,0.001,1636.8,1636.7,10.52724675]
[1693748153007,0.001,1636.8,1636.7,10.04724675]
[1693748154209,0.001,1636.8,1636.7,10.52724675]
[1693748157413,0.001,1636.8,1636.7,11.16851498]
[1693748157595,0.001,1636.8,1636.7,12.09138175]
[1693748162115,0.001,1636.8,1636.7,13.05375815]
[1693748162351,0.001,1636.8,1636.7,12.09138175]
[1693748162834,0.001,1636.8,1636.7,13.05375815]
[1693748163447,0.001,1636.8,1636.7,13.0525905]
[1693748163651,0.001,1636.8,1636.7,13.05259148]
[1693748166919,0.001,1636.8,1636.7,12.09021508]
[1693748167962,0.001,1636.8,1636.7,13.05259148]
[1693748169774,0.001,1636.8,1636.7,12.09021508]
[1693748171124,0.001,1636.8,1636.7,12.41248992]
[1693748181173,0.001,1636.8,1636.7,13.69457825]
[1693748181404,0.001,1636.8,1636.7,12.41248992]
[1693748182303,0.001,1636.8,1636.7,13.69457825]
[1693748183508,0.001,1636.8,1636.7,8.85206539]
[1693748183805,0.001,1636.8,1636.7,8.21108448]
[1693748184105,0.001,1636.8,1636.7,7.88968531]
[1693748185036,0.001,1636.8,1636.7,10.88968531]
[1693748185181,0.001,1636.8,1636.7,11.36968531]
[1693748186512,0.001,1636.8,1636.7,12.33206171]
[1693748187497,0.001,1636.8,1636.7,11.69108448]
[1693748194606,0.001,1636.8,1636.7,12.33234368]
[1693748206672,0.001,1636.8,1636.7,11.36996728]
[1693748210468,0.001,1636.8,1636.7,12.33234368]
[1693748210775,0.001,1636.8,1636.7,14.20121688]
[1693748211377,0.001,1636.8,1636.7,13.55995768]
[1693748220464,0.001,1636.8,1636.7,11.69108448]
[1693748224106,0.001,1636.8,1636.7,12.97317281]
[1693748226486,0.001,1636.8,1636.7,12.01079641]
[1693748232729,0.001,1636.8,1636.7,11.99486396]
[1693748234481,0.001,1636.8,1636.7,12.95688975]
[1693748234900,0.001,1636.8,1636.7,14.92035328]
[1693748245862,0.001,1636.8,1636.7,11.39688975]
[1693748246016,0.001,1636.8,1636.7,10.11413332]
[1693748246351,0.001,1636.8,1636.7,9.19126655]
[1693748246511,0.3851638,1636.8,1636.7,9.19126655]
[1693748249808,0.3851638,1636.8,1636.7,10.75126655]
[1693748252452,0.3851638,1636.8,1636.7,9.19126655]
[1693748255908,0.3851638,1636.8,1636.7,9.35274282]